[Event "Titled Tuesday Blitz April 11 Late 2023"]
[White "Bluebaum, Matthias"]
[Black "Vlassov, Nikolai"]
[WhiteFideId "24651516"]
[BlackFideId "4103360"]
[WhiteElo "2638"]
[BlackElo "2324"]
[Result "1-0"]
[Round "06"]
[TimeControl "180+2"]
[Date "2023.04.11"]
[WhiteClock "0:01:07"]
[BlackClock "0:00:09"]

1. d4 {[%clk 0:03:00]}  Nf6 {[%clk 0:02:59]} 2. c4 {[%clk 0:03:01]}  Nc6 {[%clk 0:02:59]} 3. Nf3 {[%clk 0:03:01]}  e6 {[%clk 0:02:59]} 4. g3 {[%clk 0:02:59]}  Bb4+ {[%clk 0:02:59]} 5. Nc3 {[%clk 0:02:56]}  Bxc3+ {[%clk 0:02:55]} 6. bxc3 {[%clk 0:02:57]}  b6 {[%clk 0:02:55]} 7. Bg2 {[%clk 0:02:57]}  Ba6 {[%clk 0:02:54]} 8. Ne5 {[%clk 0:02:49]}  O-O {[%clk 0:02:40]} 9. Bg5 {[%clk 0:02:44]}  Bb7 {[%clk 0:02:31]} 10. Ng4 {[%clk 0:02:29]}  Na5 {[%clk 0:02:14]} 11. Bxb7 {[%clk 0:02:28]}  Nxb7 {[%clk 0:02:14]} 12. Qc1 {[%clk 0:02:25]}  Nd6 {[%clk 0:02:08]} 13. Qf4 {[%clk 0:02:04]}  Nde4 {[%clk 0:01:39]} 14. Bh4 {[%clk 0:01:53]}  h6 {[%clk 0:01:29]} 15. f3 {[%clk 0:01:44]}  g5 {[%clk 0:01:18]} 16. Nxh6+ {[%clk 0:01:44]}  Kh7 {[%clk 0:01:09]} 17. Bxg5 {[%clk 0:01:44]}  Nxg5 {[%clk 0:01:08]} 18. Qxg5 {[%clk 0:01:45]}  Ng8 {[%clk 0:01:05]} 19. Qxd8 {[%clk 0:01:40]}  Raxd8 {[%clk 0:01:05]} 20. Nxg8 {[%clk 0:01:41]}  Rxg8 {[%clk 0:01:04]} 21. Kf2 {[%clk 0:01:40]}  d6 {[%clk 0:00:56]} 22. a4 {[%clk 0:01:39]}  Rg5 {[%clk 0:00:55]} 23. Rhb1 {[%clk 0:01:38]}  Ra5 {[%clk 0:00:53]} 24. Rb5 {[%clk 0:01:38]}  Ra6 {[%clk 0:00:53]} 25. a5 {[%clk 0:01:37]}  c5 {[%clk 0:00:53]} 26. Rbb1 {[%clk 0:01:31]}  cxd4 {[%clk 0:00:44]} 27. cxd4 {[%clk 0:01:31]}  Rc8 {[%clk 0:00:44]} 28. axb6 {[%clk 0:01:17]}  Rxa1 {[%clk 0:00:38]} 29. Rxa1 {[%clk 0:01:18]}  axb6 {[%clk 0:00:38]} 30. Ra4 {[%clk 0:01:19]}  Kg6 {[%clk 0:00:36]} 31. Ke3 {[%clk 0:01:18]}  f5 {[%clk 0:00:34]} 32. Kd3 {[%clk 0:01:18]}  Kf6 {[%clk 0:00:30]} 33. Ra6 {[%clk 0:01:17]}  Rb8 {[%clk 0:00:19]} 34. Kc3 {[%clk 0:01:18]}  Ke7 {[%clk 0:00:18]} 35. Kb4 {[%clk 0:01:18]}  Rh8 {[%clk 0:00:17]} 36. h4 {[%clk 0:01:09]}  Rg8 {[%clk 0:00:17]} 37. Rxb6 {[%clk 0:01:04]}  Rxg3 {[%clk 0:00:17]} 38. Rb7+ {[%clk 0:01:05]}  Kf6 {[%clk 0:00:17]} 39. Rd7 {[%clk 0:01:05]}  Rg2 {[%clk 0:00:16]} 40. Rxd6 {[%clk 0:01:06]}  Rxe2 {[%clk 0:00:15]} 41. d5 {[%clk 0:01:06]}  Rf2 {[%clk 0:00:09]} 42. Rxe6+ {[%clk 0:01:07]}  Kf7 {[%clk 0:00:09]} 43. c5 {[%clk 0:01:06]}  Rxf3 {[%clk 0:00:09]} 44. c6 {[%clk 0:01:07]} 1-0


[Site "https://www.chess.com"]

[Event "Titled Tuesday Blitz April 11 Late 2023"]
[White "Djokic, Mihailo"]
[Black "Indjic, Aleksandar"]
[WhiteFideId "976440"]
[BlackFideId "911925"]
[WhiteElo "2294"]
[BlackElo "2614"]
[Result "0-1"]
[Round "06"]
[TimeControl "180+2"]
[Date "2023.04.11"]
[WhiteClock "0:00:01"]
[BlackClock "0:00:48"]

1. e4 {[%clk 0:03:00]}  c5 {[%clk 0:02:50]} 2. Nf3 {[%clk 0:03:00]}  e6 {[%clk 0:02:48]} 3. d4 {[%clk 0:03:00]}  cxd4 {[%clk 0:02:45]} 4. Nxd4 {[%clk 0:03:01]}  a6 {[%clk 0:02:46]} 5. Be2 {[%clk 0:03:01]}  Nc6 {[%clk 0:02:45]} 6. O-O {[%clk 0:03:01]}  Qc7 {[%clk 0:02:41]} 7. Nc3 {[%clk 0:03:01]}  Nf6 {[%clk 0:02:40]} 8. Be3 {[%clk 0:03:01]}  d6 {[%clk 0:02:37]} 9. f4 {[%clk 0:02:59]}  Bd7 {[%clk 0:02:35]} 10. Kh1 {[%clk 0:02:58]}  h5 {[%clk 0:02:34]} 11. Bf3 {[%clk 0:02:57]}  Be7 {[%clk 0:02:33]} 12. h3 {[%clk 0:02:48]}  Rc8 {[%clk 0:02:31]} 13. Nxc6 {[%clk 0:02:46]}  Bxc6 {[%clk 0:02:30]} 14. Qd3 {[%clk 0:02:47]}  Nd7 {[%clk 0:02:17]} 15. Rad1 {[%clk 0:02:41]}  b5 {[%clk 0:02:15]} 16. a3 {[%clk 0:02:41]}  Ba8 {[%clk 0:02:10]} 17. Bd4 {[%clk 0:02:40]}  e5 {[%clk 0:01:35]} 18. Be3 {[%clk 0:02:34]}  Qc4 {[%clk 0:01:30]} 19. Qd2 {[%clk 0:02:27]}  Nf6 {[%clk 0:01:30]} 20. fxe5 {[%clk 0:02:19]}  dxe5 {[%clk 0:01:31]} 21. Bg5 {[%clk 0:02:19]}  Rd8 {[%clk 0:01:30]} 22. Qf2 {[%clk 0:02:13]}  Rxd1 {[%clk 0:01:29]} 23. Rxd1 {[%clk 0:02:13]}  O-O {[%clk 0:01:28]} 24. Qg3 {[%clk 0:01:50]}  Qc7 {[%clk 0:01:06]} 25. Bh6 {[%clk 0:01:34]}  g6 {[%clk 0:01:06]} 26. Bxf8 {[%clk 0:01:33]}  Bxf8 {[%clk 0:01:07]} 27. Nd5 {[%clk 0:01:26]}  Bxd5 {[%clk 0:01:07]} 28. exd5 {[%clk 0:01:25]}  Bd6 {[%clk 0:01:07]} 29. Qg5 {[%clk 0:01:21]}  Kg7 {[%clk 0:01:07]} 30. c3 {[%clk 0:01:19]}  e4 {[%clk 0:01:04]} 31. Be2 {[%clk 0:01:18]}  Bf4 {[%clk 0:01:04]} 32. Qh4 {[%clk 0:01:17]}  Qd6 {[%clk 0:01:02]} 33. Qf2 {[%clk 0:01:08]}  Be5 {[%clk 0:00:59]} 34. Qe3 {[%clk 0:01:06]}  Bf4 {[%clk 0:00:59]} 35. Qd4 {[%clk 0:01:06]}  Be5 {[%clk 0:00:59]} 36. Qb4 {[%clk 0:01:06]}  Qd7 {[%clk 0:00:56]} 37. d6 {[%clk 0:01:03]}  Qf5 {[%clk 0:00:56]} 38. Rf1 {[%clk 0:01:02]}  Qg5 {[%clk 0:00:55]} 39. Kg1 {[%clk 0:00:26]}  Qe3+ {[%clk 0:00:53]} 40. Kh1 {[%clk 0:00:12]}  Qg3 {[%clk 0:00:48]} 41. Kg1 {[%clk 0:00:08]}  e3 {[%clk 0:00:49]} 42. Rf4 {[%clk 0:00:01]}  Bxf4 {[%clk 0:00:48]} 43. Kf1 {[%clk 0:00:01]}  Qf2# {[%clk 0:00:48]} 0-1


[Site "https://www.chess.com"]

[Event "Titled Tuesday Blitz April 11 Late 2023"]
[White "Licznerski, Lukasz"]
[Black "Klenburg, Michael"]
[WhiteFideId "1179250"]
[BlackFideId "14102072"]
[WhiteElo "2450"]
[BlackElo "2396"]
[Result "1-0"]
[Round "06"]
[TimeControl "180+2"]
[Date "2023.04.11"]
[WhiteClock "0:01:36"]
[BlackClock "0:01:35"]

1. e4 {[%clk 0:03:00]}  d6 {[%clk 0:02:59]} 2. d4 {[%clk 0:03:00]}  Nf6 {[%clk 0:02:59]} 3. Nc3 {[%clk 0:03:00]}  g6 {[%clk 0:02:59]} 4. Nf3 {[%clk 0:03:00]}  Bg7 {[%clk 0:02:59]} 5. Bc4 {[%clk 0:03:01]}  O-O {[%clk 0:02:59]} 6. Bb3 {[%clk 0:03:02]}  c6 {[%clk 0:02:58]} 7. h3 {[%clk 0:03:01]}  d5 {[%clk 0:02:53]} 8. e5 {[%clk 0:02:54]}  Ne8 {[%clk 0:02:52]} 9. Bf4 {[%clk 0:02:50]}  Nc7 {[%clk 0:02:52]} 10. Qd2 {[%clk 0:02:49]}  Ne6 {[%clk 0:02:51]} 11. Bh6 {[%clk 0:02:49]}  b5 {[%clk 0:02:48]} 12. h4 {[%clk 0:02:48]}  a5 {[%clk 0:02:31]} 13. h5 {[%clk 0:02:47]}  Bh8 {[%clk 0:02:20]} 14. a4 {[%clk 0:02:38]}  b4 {[%clk 0:02:20]} 15. Ne2 {[%clk 0:02:38]}  Nd7 {[%clk 0:02:17]} 16. Nf4 {[%clk 0:02:28]}  Nb6 {[%clk 0:02:12]} 17. Nxe6 {[%clk 0:02:25]}  Bxe6 {[%clk 0:02:11]} 18. Ng5 {[%clk 0:02:23]}  Bf5 {[%clk 0:02:10]} 19. Nxh7 {[%clk 0:02:07]}  Re8 {[%clk 0:02:07]} 20. hxg6 {[%clk 0:01:38]}  Bxg6 {[%clk 0:02:07]} 21. Qg5 {[%clk 0:01:38]}  Kxh7 {[%clk 0:01:40]} 22. Bg7+ {[%clk 0:01:37]}  Kg8 {[%clk 0:01:35]} 23. Rxh8+ {[%clk 0:01:36]} 1-0


[Site "https://www.chess.com"]

[Event "Titled Tuesday Blitz April 11 Late 2023"]
[White "Lenaerts, Lennert"]
[Black "Tanenbaum, Zachary"]
[WhiteFideId "211435"]
[BlackFideId "2060850"]
[WhiteElo "2334"]
[BlackElo "2175"]
[Result "1-0"]
[Round "06"]
[TimeControl "180+2"]
[Date "2023.04.11"]
[WhiteClock "0:00:29"]
[BlackClock "0:00:06"]

1. d4 {[%clk 0:02:59]}  d5 {[%clk 0:03:00]} 2. c4 {[%clk 0:02:59]}  dxc4 {[%clk 0:03:00]} 3. Nf3 {[%clk 0:02:58]}  Nf6 {[%clk 0:03:00]} 4. e3 {[%clk 0:02:59]}  Bg4 {[%clk 0:03:00]} 5. Bxc4 {[%clk 0:03:00]}  e6 {[%clk 0:03:00]} 6. Nc3 {[%clk 0:03:00]}  Nc6 {[%clk 0:03:00]} 7. h3 {[%clk 0:03:00]}  Bh5 {[%clk 0:03:00]} 8. Bb5 {[%clk 0:03:00]}  Bb4 {[%clk 0:02:58]} 9. Qa4 {[%clk 0:02:53]}  Bxc3+ {[%clk 0:02:57]} 10. bxc3 {[%clk 0:02:54]}  Bxf3 {[%clk 0:02:58]} 11. gxf3 {[%clk 0:02:55]}  O-O {[%clk 0:02:58]} 12. Bxc6 {[%clk 0:02:51]}  bxc6 {[%clk 0:02:59]} 13. Qxc6 {[%clk 0:02:52]}  Rb8 {[%clk 0:02:49]} 14. Ba3 {[%clk 0:02:51]}  Re8 {[%clk 0:02:48]} 15. f4 {[%clk 0:02:52]}  Nd5 {[%clk 0:02:45]} 16. c4 {[%clk 0:02:49]}  Rb6 {[%clk 0:02:32]} 17. Qa4 {[%clk 0:02:48]}  Nxf4 {[%clk 0:02:13]} 18. exf4 {[%clk 0:02:44]}  Qa8 {[%clk 0:02:06]} 19. O-O {[%clk 0:02:38]}  e5 {[%clk 0:02:05]} 20. f5 {[%clk 0:02:36]}  exd4 {[%clk 0:01:57]} 21. Rfe1 {[%clk 0:02:34]}  Reb8 {[%clk 0:01:53]} 22. c5 {[%clk 0:02:31]}  Rh6 {[%clk 0:01:51]} 23. c6 {[%clk 0:02:29]}  Rxc6 {[%clk 0:01:37]} 24. Qxd4 {[%clk 0:02:26]}  Rh6 {[%clk 0:00:55]} 25. Bb2 {[%clk 0:02:15]}  Rf6 {[%clk 0:00:22]} 26. Re4 {[%clk 0:01:57]}  c5 {[%clk 0:00:20]} 27. Qe3 {[%clk 0:01:45]}  Rxf5 {[%clk 0:00:12]} 28. Bc3 {[%clk 0:01:42]}  h6 {[%clk 0:00:11]} 29. Rg4 {[%clk 0:01:38]}  Rb6 {[%clk 0:00:09]} 30. Rxg7+ {[%clk 0:01:35]}  Kf8 {[%clk 0:00:10]} 31. Re1 {[%clk 0:01:33]}  Re6 {[%clk 0:00:06]} 32. Qg3 {[%clk 0:01:19]}  Rxe1+ {[%clk 0:00:05]} 33. Bxe1 {[%clk 0:01:20]}  Ke7 {[%clk 0:00:04]} 34. Qe3+ {[%clk 0:01:07]}  Kd7 {[%clk 0:00:05]} 35. Qd3+ {[%clk 0:01:01]}  Ke6 {[%clk 0:00:05]} 36. Bc3 {[%clk 0:00:54]}  Qb7 {[%clk 0:00:05]} 37. Qc4+ {[%clk 0:00:51]}  Kd6 {[%clk 0:00:05]} 38. Qd3+ {[%clk 0:00:38]}  Rd5 {[%clk 0:00:06]} 39. Qg6+ {[%clk 0:00:28]}  fxg6 {[%clk 0:00:03]} 40. Rxb7 {[%clk 0:00:29]}  Rd3 {[%clk 0:00:04]} 41. Bg7 {[%clk 0:00:28]}  Rxh3 {[%clk 0:00:04]} 42. Rxa7 {[%clk 0:00:27]}  Kd5 {[%clk 0:00:04]} 43. Ra6 {[%clk 0:00:26]}  h5 {[%clk 0:00:03]} 44. Rxg6 {[%clk 0:00:26]}  Ra3 {[%clk 0:00:04]} 45. Rg5+ {[%clk 0:00:24]}  Kc6 {[%clk 0:00:03]} 46. Rxc5+ {[%clk 0:00:24]}  Kd7 {[%clk 0:00:03]} 47. Rxh5 {[%clk 0:00:23]}  Rxa2 {[%clk 0:00:04]} 48. Kg2 {[%clk 0:00:23]}  Ke6 {[%clk 0:00:04]} 49. Bd4 {[%clk 0:00:22]}  Kf7 {[%clk 0:00:04]} 50. Be3 {[%clk 0:00:23]}  Kg6 {[%clk 0:00:05]} 51. Rh3 {[%clk 0:00:24]}  Kg7 {[%clk 0:00:05]} 52. Rf3 {[%clk 0:00:25]}  Ra6 {[%clk 0:00:04]} 53. Rg3+ {[%clk 0:00:26]}  Kh7 {[%clk 0:00:05]} 54. Rg4 {[%clk 0:00:26]}  Ra5 {[%clk 0:00:05]} 55. f4 {[%clk 0:00:26]}  Kh6 {[%clk 0:00:05]} 56. Kf3 {[%clk 0:00:26]}  Kh5 {[%clk 0:00:05]} 57. Rg5+ {[%clk 0:00:26]}  Rxg5 {[%clk 0:00:04]} 58. fxg5 {[%clk 0:00:27]}  Kg6 {[%clk 0:00:04]} 59. Kg4 {[%clk 0:00:28]}  Kh7 {[%clk 0:00:04]} 60. Kf5 {[%clk 0:00:29]}  Kg7 {[%clk 0:00:04]} 61. Bd4+ {[%clk 0:00:30]}  Kh7 {[%clk 0:00:04]} 62. g6+ {[%clk 0:00:30]}  Kg8 {[%clk 0:00:04]} 63. Kf6 {[%clk 0:00:31]}  Kf8 {[%clk 0:00:04]} 64. Bc5+ {[%clk 0:00:30]}  Kg8 {[%clk 0:00:05]} 65. g7 {[%clk 0:00:31]}  Kh7 {[%clk 0:00:05]} 66. Kf7 {[%clk 0:00:31]}  Kh6 {[%clk 0:00:06]} 67. g8=Q {[%clk 0:00:30]}  Kh5 {[%clk 0:00:06]} 68. Qg3 {[%clk 0:00:30]}  Kh6 {[%clk 0:00:06]} 69. Qg6# {[%clk 0:00:29]} 1-0


[Site "https://www.chess.com"]

[Event "Titled Tuesday Blitz April 11 Late 2023"]
[White "Yuan, Qingyu"]
[Black "Martic, Ivan"]
[WhiteFideId "8609772"]
[BlackFideId "929301"]
[WhiteElo "2359"]
[BlackElo "2360"]
[Result "1-0"]
[Round "06"]
[TimeControl "180+2"]
[Date "2023.04.11"]
[WhiteClock "0:00:06"]
[BlackClock "0:00:10"]

1. e4 {[%clk 0:03:00]}  c5 {[%clk 0:02:57]} 2. Nf3 {[%clk 0:03:01]}  e6 {[%clk 0:02:56]} 3. c3 {[%clk 0:03:01]}  d5 {[%clk 0:02:52]} 4. exd5 {[%clk 0:03:02]}  Qxd5 {[%clk 0:02:52]} 5. d4 {[%clk 0:03:03]}  Nf6 {[%clk 0:02:52]} 6. Na3 {[%clk 0:03:03]}  Nc6 {[%clk 0:02:49]} 7. Be3 {[%clk 0:03:03]}  cxd4 {[%clk 0:02:49]} 8. Nb5 {[%clk 0:03:04]}  Qd8 {[%clk 0:02:47]} 9. Nbxd4 {[%clk 0:03:04]}  Nxd4 {[%clk 0:02:42]} 10. Bxd4 {[%clk 0:02:51]}  a6 {[%clk 0:02:32]} 11. Bd3 {[%clk 0:02:36]}  Be7 {[%clk 0:02:29]} 12. O-O {[%clk 0:02:21]}  O-O {[%clk 0:02:29]} 13. Qc2 {[%clk 0:02:18]}  h6 {[%clk 0:02:24]} 14. Rad1 {[%clk 0:02:15]}  Qc7 {[%clk 0:02:24]} 15. Be5 {[%clk 0:02:12]}  Qc5 {[%clk 0:02:21]} 16. b4 {[%clk 0:02:04]}  Qc6 {[%clk 0:02:20]} 17. Nd4 {[%clk 0:01:58]}  Qb6 {[%clk 0:02:15]} 18. Rfe1 {[%clk 0:01:52]}  Rd8 {[%clk 0:02:12]} 19. Nb3 {[%clk 0:01:41]}  Bd7 {[%clk 0:02:07]} 20. Bd4 {[%clk 0:01:41]}  Qc7 {[%clk 0:02:06]} 21. Be5 {[%clk 0:01:34]}  Qb6 {[%clk 0:02:03]} 22. Bd4 {[%clk 0:01:21]}  Qc7 {[%clk 0:02:03]} 23. Nc5 {[%clk 0:01:21]}  Be8 {[%clk 0:01:47]} 24. a4 {[%clk 0:01:18]}  Rac8 {[%clk 0:01:47]} 25. a5 {[%clk 0:01:16]}  Nd5 {[%clk 0:01:43]} 26. Qe2 {[%clk 0:01:03]}  Bf6 {[%clk 0:01:09]} 27. Qe4 {[%clk 0:00:36]}  g6 {[%clk 0:01:08]} 28. Bxf6 {[%clk 0:00:33]}  Nxf6 {[%clk 0:01:09]} 29. Qxb7 {[%clk 0:00:28]}  Qf4 {[%clk 0:00:54]} 30. g3 {[%clk 0:00:25]}  Qg5 {[%clk 0:00:52]} 31. Bxa6 {[%clk 0:00:16]}  Nd5 {[%clk 0:00:47]} 32. Rxd5 {[%clk 0:00:08]}  exd5 {[%clk 0:00:40]} 33. Qe7 {[%clk 0:00:06]}  Qd2 {[%clk 0:00:36]} 34. Bxc8 {[%clk 0:00:05]}  Rxc8 {[%clk 0:00:34]} 35. Qe3 {[%clk 0:00:06]}  Qa2 {[%clk 0:00:32]} 36. Qxh6 {[%clk 0:00:05]}  d4 {[%clk 0:00:30]} 37. cxd4 {[%clk 0:00:05]}  Bc6 {[%clk 0:00:30]} 38. Qg5 {[%clk 0:00:02]}  Qb2 {[%clk 0:00:25]} 39. Qe5 {[%clk 0:00:02]}  Qxb4 {[%clk 0:00:22]} 40. a6 {[%clk 0:00:02]}  Re8 {[%clk 0:00:18]} 41. Qxe8+ {[%clk 0:00:02]}  Bxe8 {[%clk 0:00:19]} 42. Rxe8+ {[%clk 0:00:03]}  Kg7 {[%clk 0:00:20]} 43. a7 {[%clk 0:00:03]}  Qb1+ {[%clk 0:00:16]} 44. Kg2 {[%clk 0:00:03]}  Qb5 {[%clk 0:00:14]} 45. a8=Q {[%clk 0:00:04]}  Qc4 {[%clk 0:00:10]} 46. Rg8+ {[%clk 0:00:04]}  Kh6 {[%clk 0:00:10]} 47. Rh8+ {[%clk 0:00:05]}  Kg5 {[%clk 0:00:10]} 48. Qd8+ {[%clk 0:00:05]}  Kg4 {[%clk 0:00:10]} 49. Qh4+ {[%clk 0:00:05]}  Kf5 {[%clk 0:00:10]} 50. Qf4# {[%clk 0:00:06]} 1-0


[Site "https://www.chess.com"]

[Event "Titled Tuesday Blitz April 11 Late 2023"]
[White "Hajiyev, Kanan"]
[Black "Hambleton, Aman"]
[WhiteFideId "13404148"]
[BlackFideId "2606577"]
[WhiteElo "2103"]
[BlackElo "2511"]
[Result "0-1"]
[Round "06"]
[TimeControl "180+2"]
[Date "2023.04.11"]
[WhiteClock "0:00:03"]
[BlackClock "0:00:02"]

1. d4 {[%clk 0:02:52]}  e5 {[%clk 0:02:58]} 2. dxe5 {[%clk 0:02:49]}  Nc6 {[%clk 0:02:58]} 3. Bf4 {[%clk 0:02:49]}  Qe7 {[%clk 0:02:58]} 4. Nc3 {[%clk 0:02:36]}  Nxe5 {[%clk 0:02:57]} 5. e3 {[%clk 0:02:34]}  Nf6 {[%clk 0:02:56]} 6. Nf3 {[%clk 0:02:32]}  d6 {[%clk 0:02:48]} 7. Bb5+ {[%clk 0:02:29]}  c6 {[%clk 0:02:42]} 8. Be2 {[%clk 0:02:27]}  g6 {[%clk 0:02:30]} 9. O-O {[%clk 0:02:10]}  Bg7 {[%clk 0:02:29]} 10. Qd2 {[%clk 0:01:45]}  O-O {[%clk 0:02:24]} 11. Rad1 {[%clk 0:01:41]}  Nxf3+ {[%clk 0:02:24]} 12. Bxf3 {[%clk 0:01:41]}  d5 {[%clk 0:02:25]} 13. Rfe1 {[%clk 0:01:33]}  Bg4 {[%clk 0:01:34]} 14. Bxg4 {[%clk 0:01:26]}  Nxg4 {[%clk 0:01:35]} 15. e4 {[%clk 0:01:21]}  d4 {[%clk 0:01:34]} 16. Ne2 {[%clk 0:01:08]}  Rad8 {[%clk 0:01:13]} 17. f3 {[%clk 0:01:03]}  Ne5 {[%clk 0:01:01]} 18. Qa5 {[%clk 0:00:54]}  b6 {[%clk 0:00:53]} 19. Qa4 {[%clk 0:00:49]}  c5 {[%clk 0:00:47]} 20. c3 {[%clk 0:00:41]}  dxc3 {[%clk 0:00:21]} 21. Nxc3 {[%clk 0:00:40]}  Nd3 {[%clk 0:00:22]} 22. Nd5 {[%clk 0:00:05]}  Rxd5 {[%clk 0:00:18]} 23. exd5 {[%clk 0:00:05]}  Nxe1 {[%clk 0:00:17]} 24. Qc4 {[%clk 0:00:03]}  Qh4 {[%clk 0:00:02]} 0-1


[Site "https://www.chess.com"]

[Event "Titled Tuesday Blitz April 11 Late 2023"]
[White "Bilych, Olexiy"]
[Black "Tomaszewski, Kacper"]
[WhiteFideId "14156504"]
[BlackFideId "1127373"]
[WhiteElo "2320"]
[BlackElo "2211"]
[Result "1-0"]
[Round "06"]
[TimeControl "180+2"]
[Date "2023.04.11"]
[WhiteClock "0:01:38"]
[BlackClock "0:00:21"]

1. d4 {[%clk 0:03:00]}  g6 {[%clk 0:02:59]} 2. c4 {[%clk 0:03:01]}  Bg7 {[%clk 0:02:59]} 3. Nc3 {[%clk 0:03:01]}  c5 {[%clk 0:02:59]} 4. Nf3 {[%clk 0:02:59]}  Nc6 {[%clk 0:02:46]} 5. d5 {[%clk 0:02:48]}  Na5 {[%clk 0:02:44]} 6. Qd3 {[%clk 0:02:35]}  d6 {[%clk 0:02:39]} 7. e4 {[%clk 0:02:33]}  a6 {[%clk 0:02:38]} 8. Be2 {[%clk 0:02:31]}  b5 {[%clk 0:02:38]} 9. cxb5 {[%clk 0:02:29]}  Nf6 {[%clk 0:02:34]} 10. O-O {[%clk 0:02:26]}  O-O {[%clk 0:02:32]} 11. a4 {[%clk 0:02:24]}  Nb3 {[%clk 0:02:25]} 12. Ra3 {[%clk 0:02:23]}  Nxc1 {[%clk 0:02:23]} 13. Rxc1 {[%clk 0:02:24]}  Bh6 {[%clk 0:02:21]} 14. Re1 {[%clk 0:02:14]}  Nh5 {[%clk 0:02:20]} 15. Bf1 {[%clk 0:02:10]}  Nf4 {[%clk 0:02:08]} 16. Qc2 {[%clk 0:02:10]}  Qa5 {[%clk 0:01:59]} 17. Nd2 {[%clk 0:02:07]}  Qb4 {[%clk 0:01:26]} 18. Nc4 {[%clk 0:01:53]}  axb5 {[%clk 0:01:26]} 19. axb5 {[%clk 0:01:42]}  Nxg2 {[%clk 0:00:21]} 20. Kxg2 {[%clk 0:01:38]} 1-0


[Site "https://www.chess.com"]

[Event "Titled Tuesday Blitz April 11 Late 2023"]
[White "Pakleza, Zbigniew"]
[Black "Araujo Sanchez, Josue"]
[WhiteFideId "1119290"]
[BlackFideId "6416896"]
[WhiteElo "2410"]
[BlackElo "2420"]
[Result "1-0"]
[Round "06"]
[TimeControl "180+2"]
[Date "2023.04.11"]
[WhiteClock "0:00:05"]
[BlackClock "0:00:05"]

1. d4 {[%clk 0:03:00]}  Nf6 {[%clk 0:02:57]} 2. Nf3 {[%clk 0:03:00]}  c5 {[%clk 0:02:55]} 3. c3 {[%clk 0:03:00]}  b6 {[%clk 0:02:54]} 4. Bf4 {[%clk 0:03:00]}  Bb7 {[%clk 0:02:55]} 5. e3 {[%clk 0:03:01]}  e6 {[%clk 0:02:54]} 6. Nbd2 {[%clk 0:03:00]}  cxd4 {[%clk 0:02:50]} 7. cxd4 {[%clk 0:02:59]}  Be7 {[%clk 0:02:51]} 8. h3 {[%clk 0:02:59]}  O-O {[%clk 0:02:49]} 9. Bd3 {[%clk 0:02:59]}  Ba6 {[%clk 0:02:46]} 10. Bxa6 {[%clk 0:02:59]}  Nxa6 {[%clk 0:02:47]} 11. O-O {[%clk 0:02:59]}  Qc8 {[%clk 0:02:46]} 12. Qb3 {[%clk 0:02:46]}  Qb7 {[%clk 0:02:47]} 13. Nc4 {[%clk 0:02:43]}  Ne4 {[%clk 0:02:39]} 14. Rfc1 {[%clk 0:02:39]}  Rac8 {[%clk 0:02:39]} 15. a3 {[%clk 0:02:26]}  Nc7 {[%clk 0:02:19]} 16. Qd3 {[%clk 0:02:14]}  Rfd8 {[%clk 0:02:04]} 17. Rc2 {[%clk 0:02:11]}  Ne8 {[%clk 0:02:03]} 18. Rac1 {[%clk 0:02:08]}  d6 {[%clk 0:01:52]} 19. b4 {[%clk 0:01:22]}  Rc7 {[%clk 0:01:40]} 20. b5 {[%clk 0:01:07]}  Rdc8 {[%clk 0:01:33]} 21. a4 {[%clk 0:01:07]}  h6 {[%clk 0:01:22]} 22. a5 {[%clk 0:00:45]}  bxa5 {[%clk 0:01:12]} 23. Nxa5 {[%clk 0:00:46]}  Rxc2 {[%clk 0:01:09]} 24. Rxc2 {[%clk 0:00:46]}  Rxc2 {[%clk 0:01:03]} 25. Qxc2 {[%clk 0:00:33]}  Qc7 {[%clk 0:00:42]} 26. Nc6 {[%clk 0:00:21]}  N8f6 {[%clk 0:00:35]} 27. Qa4 {[%clk 0:00:21]}  Bf8 {[%clk 0:00:12]} 28. Qxa7 {[%clk 0:00:19]}  Qc8 {[%clk 0:00:13]} 29. Qa6 {[%clk 0:00:15]}  Qc7 {[%clk 0:00:12]} 30. Qa8 {[%clk 0:00:13]}  Nd5 {[%clk 0:00:11]} 31. Ne1 {[%clk 0:00:06]}  Nxf4 {[%clk 0:00:10]} 32. exf4 {[%clk 0:00:07]}  Nc3 {[%clk 0:00:10]} 33. Qa6 {[%clk 0:00:05]}  d5 {[%clk 0:00:08]} 34. Nd3 {[%clk 0:00:05]}  Qd6 {[%clk 0:00:07]} 35. Nde5 {[%clk 0:00:05]}  f6 {[%clk 0:00:06]} 36. Ng6 {[%clk 0:00:05]}  Kh7 {[%clk 0:00:06]} 37. Nxf8+ {[%clk 0:00:06]}  Qxf8 {[%clk 0:00:06]} 38. b6 {[%clk 0:00:05]}  Qd6 {[%clk 0:00:06]} 39. b7 {[%clk 0:00:05]}  Qxf4 {[%clk 0:00:07]} 40. b8=Q {[%clk 0:00:04]}  Qc1+ {[%clk 0:00:06]} 41. Kh2 {[%clk 0:00:05]}  Ne2 {[%clk 0:00:05]} 42. Qxe2 {[%clk 0:00:05]} 1-0


[Site "https://www.chess.com"]